bitfinex-derivatives/quotes_SOLF0:USTF0_20250818
["timestamp","ask_amount","ask_price","bid_price","bid_amount"]
[1755525342313,11.08632787,181.41,181.26,5.5136]
[1755525342613,11.08632787,181.4,181.27,5.5134]
[1755525342809,3.91431859,181.39,181.24,9.01077898]
[1755525343010,3.91431859,181.38,181.24,9.01077898]
[1755525343213,3.91431859,181.37,181.24,9.01077898]
[1755525343407,22.53509507,181.43,181.24,9.01077898]
[1755525343408,3.91431859,181.36,181.24,9.01077898]
[1755525343609,22.53509507,181.43,181.27,5.5134]
[1755525343915,11.08188847,181.42,181.27,5.5134]
[1755525344210,11.08188847,181.41,181.24,9.01077898]
[1755525344411,11.08188847,181.4,181.28,9.01077898]
[1755525344609,54.0,181.46,181.28,9.01077898]
[1755525344808,11.08449404,181.45,181.29,5.5126]
[1755525345019,17.06958911,181.44,181.26,9.01077898]
[1755525345209,11.08449404,181.43,181.26,9.01077898]
[1755525345410,11.08449404,181.42,181.26,9.01077898]
[1755525345609,27.63449404,181.41,181.26,9.01077898]
[1755525345810,16.55,181.39,181.24,5.5141]
[1755525346011,65.08449404,181.38,181.24,5.5141]
[1755525346216,8.29511095,181.37,181.22,9.01077898]
[1755525346418,62.34264933,181.36,181.22,9.01077898]
[1755525346610,3.91374268,181.35,181.22,9.01077898]
[1755525346808,3.91374268,181.34,181.22,9.01077898]
[1755525347007,3.91374268,181.33,181.18,9.01077898]
[1755525347216,3.91374268,181.32,181.18,9.01077898]
[1755525347406,3.91374268,181.31,181.18,9.01077898]
[1755525347612,3.91374268,181.3,181.18,9.01077898]
[1755525347813,16.55,181.33,181.18,9.01077898]
[1755525348013,3.91375129,181.32,181.18,9.01077898]
[1755525348213,3.91375129,181.31,181.18,9.01077898]
[1755525348516,3.91375129,181.3,181.18,9.01077898]
[1755525348814,54.0,181.35,181.13,9.13094825]
[1755525348815,16.55,181.34,181.13,9.13094825]
[1755525349118,11.13404492,181.33,181.17,9.01077898]
[1755525349424,14.99587405,181.4,181.21,9.01077898]
[1755525349616,11.13749094,181.39,181.21,9.01077898]
[1755525349916,11.13749094,181.38,181.21,9.01077898]
[1755525350118,11.13685311,181.37,181.26,5.5137]
[1755525350417,3.91604496,181.36,181.25,9.01077898]
[1755525350619,3.91604496,181.35,181.25,9.01077898]
[1755525350918,3.91604496,181.34,181.25,9.01077898]
[1755525351123,16.55,181.4,181.25,9.01077898]
[1755525351326,11.13989413,181.39,181.25,9.01077898]
[1755525351520,11.13989413,181.38,181.25,9.01077898]
[1755525351714,3.9166469,181.37,181.25,14.52457898]
[1755525351915,3.9166469,181.36,181.25,9.01077898]
[1755525352115,3.9166469,181.35,181.25,9.01077898]
[1755525352321,3.9166469,181.34,181.25,9.01077898]
[1755525352517,16.55,181.4,181.25,9.01077898]
[1755525352716,11.14082375,181.39,181.25,9.01077898]
[1755525352920,8.34991931,181.38,181.25,9.01077898]
[1755525353122,3.91703591,181.37,181.25,9.01077898]
[1755525353327,3.91703591,181.36,181.25,9.01077898]
[1755525353623,3.91703591,181.35,181.25,9.01077898]
[1755525353830,76.53509507,181.41,181.25,9.01077898]
[1755525354031,22.53509507,181.39,181.21,9.01077898]
[1755525354229,27.69642404,181.38,181.25,5.514]
[1755525354432,11.14642404,181.37,181.21,9.01077898]
[1755525354633,62.35421855,181.36,181.17,9.13094825]
[1755525354826,3.91928996,181.35,181.22,9.01077898]
[1755525355026,3.91928996,181.34,181.22,9.01077898]
[1755525355333,3.91928996,181.33,181.22,9.01077898]
[1755525355525,54.0,181.36,181.22,9.01077898]
[1755525355725,3.92217001,181.35,181.18,9.13094825]
[1755525355924,57.92217001,181.34,181.2,9.01077898]
[1755525356123,8.35923313,181.33,181.2,9.01077898]
[1755525356329,3.92217001,181.32,181.2,9.01077898]
[1755525356529,3.92217001,181.31,181.2,9.01077898]
[1755525356728,3.92217001,181.3,181.2,9.01077898]
[1755525356927,3.92217001,181.29,181.2,9.01077898]
[1755525357223,3.92119195,181.28,181.19,5.5158]
[1755525357427,70.55,181.34,181.19,5.5158]
[1755525357727,81.69957186,181.33,181.15,9.01077898]
[1755525357932,81.69957186,181.32,181.15,9.01077898]
[1755525358130,8.35682424,181.31,181.18,5.5161]
[1755525358327,11.1490797,181.3,181.18,5.5161]
[1755525358528,3.92058974,181.29,181.18,5.5161]
[1755525358835,3.92058974,181.28,181.15,9.01077898]
[1755525359134,70.55,181.32,181.15,9.01077898]
[1755525359135,3.92058974,181.27,181.15,9.01077898]
[1755525359337,3.92058974,181.26,181.11,9.01077898]
[1755525359634,8.35425987,181.25,181.11,9.01077898]
[1755525359829,3.92058974,181.24,181.11,9.01077898]
[1755525360024,3.92058974,181.23,181.11,9.01077898]
[1755525360224,3.92058974,181.22,181.1,3.04268]
[1755525360431,3.91730319,181.21,181.1,3.04268]
[1755525360636,3.91730319,181.2,181.1,3.04268]
[1755525360839,5.98509507,181.26,181.1,8.56108]
[1755525361033,3.91340691,181.25,181.1,8.56108]
[1755525361239,6.70373095,181.24,181.1,3.04268]
[1755525361442,11.13671282,181.23,181.1,8.56118]
[1755525361640,3.91340691,181.22,181.1,8.56118]
[1755525361938,3.91340691,181.21,181.1,8.56118]
[1755525362137,3.91340691,181.2,181.11,5.5182]
[1755525362338,71.98842159,181.29,181.1,3.04268]
[1755525362339,5.98509507,181.28,181.1,3.04268]
[1755525362536,65.12520547,181.27,181.1,3.04268]
[1755525362736,11.12520547,181.26,181.12,5.5178]
[1755525362936,11.12520547,181.25,181.1,3.04268]
[1755525363233,11.12541702,181.24,181.1,3.04268]
[1755525363433,3.90743789,181.23,181.1,3.04268]
[1755525363629,3.90743789,181.22,181.1,3.04268]
[1755525363834,3.90743789,181.21,181.12,5.5178]
[1755525364033,54.0,181.27,181.1,3.04268]
[1755525364236,11.11928862,181.26,181.1,3.04268]
[1755525364436,20.1300676,181.25,181.1,8.56118]
[1755525364628,8.33262073,181.24,181.1,8.56118]
[1755525364832,3.9055821,181.23,181.1,8.56118]
[1755525365032,8.32935736,181.22,181.1,3.04268]
[1755525365234,3.9055821,181.21,181.1,3.04268]
[1755525365435,54.0,181.24,181.1,3.04268]
[1755525365635,8.32582968,181.23,181.1,3.04268]
[1755525365838,3.90140685,181.22,181.1,3.04268]
[1755525366040,3.90140685,181.21,181.11,5.5181]
[1755525366240,3.90140685,181.2,181.1,3.04268]
[1755525366533,54.0,181.24,181.11,5.5183]
[1755525366737,8.31884952,181.23,181.11,5.5183]
[1755525366934,3.89978725,181.22,181.1,3.04268]
[1755525367131,54.0,181.24,181.13,5.5177]
[1755525367336,3.90017985,181.23,181.13,5.5177]
[1755525367528,3.90017985,181.22,181.13,5.5177]
[1755525367729,54.0,181.24,181.12,5.5179]
[1755525367928,3.89854204,181.23,181.12,5.5179]
[1755525368134,3.89854204,181.22,181.12,5.5179]
[1755525368436,3.89854204,181.21,181.13,5.5177]
[1755525368637,54.0,181.24,181.1,3.04268]
[1755525368942,3.89565568,181.23,181.1,3.04268]
[1755525369141,54.0,181.24,181.1,3.04268]
[1755525369142,3.89565568,181.22,181.1,3.04268]
[1755525369344,54.0,181.24,181.12,5.518]
[1755525369639,3.89395071,181.23,181.1,3.04268]
[1755525369841,3.89395071,181.22,181.1,3.04268]
[1755525370042,54.0,181.24,181.1,3.04268]
[1755525370339,3.89396667,181.23,181.1,8.56118]
[1755525370541,54.0,181.24,181.1,8.56118]
[1755525370542,3.89396667,181.22,181.1,8.56118]
[1755525370743,3.89396667,181.21,181.11,5.5183]
[1755525371039,54.0,181.24,181.11,5.5183]
[1755525371234,54.0,181.24,181.1,3.04268]
[1755525371235,3.89267137,181.23,181.1,3.04268]
[1755525371430,54.0,181.24,181.11,9.01077898]
[1755525371736,54.0,181.24,181.13,5.5176]
[1755525371942,54.0,181.24,181.11,9.01077898]
[1755525372241,57.89184199,181.23,181.1,3.04268]
[1755525372442,20.44184199,181.22,181.1,3.04268]
[1755525372642,3.89184199,181.21,181.1,3.04268]
[1755525372843,3.89184199,181.2,181.1,3.04268]
[1755525373141,16.55,181.22,181.1,3.04268]
[1755525373336,74.43932335,181.21,181.1,3.04268]
[1755525373544,3.88932335,181.2,181.1,3.04268]
[1755525373840,3.88932335,181.19,181.1,3.04268]
[1755525374039,70.55,181.21,181.1,3.04268]
[1755525374240,3.88689189,181.2,181.1,3.04268]
[1755525374540,3.88689189,181.19,181.1,3.04268]
[1755525374737,70.55,181.21,181.1,3.04268]
[1755525374939,3.88540043,181.2,181.1,3.04268]
[1755525375138,3.88540043,181.19,181.1,3.04268]
[1755525375338,3.12,181.2,181.11,3.14]
[1755525375641,3.88400477,181.19,181.11,3.14]
[1755525375845,3.12,181.2,181.11,3.14]
[1755525376142,3.05,181.18,181.11,3.14]
[1755525377142,3.05,181.18,181.1,3.04268]
[1755525378047,3.05,181.16,181.1,3.04268]
[1755525378244,3.05,181.14,181.1,3.04268]
[1755525378542,3.05,181.14,181.1,3.00958539]
[1755525378940,19.6,181.13,181.03,3.07]
[1755525379146,66.28023425,181.26,180.99,3.07]
[1755525379147,3.05,181.11,180.99,3.07]
[1755525379542,3.05,181.11,180.99,5.5217]
[1755525379740,3.05,181.11,181.0,3.07]
[1755525380236,3.05,181.11,180.97,3.07]
[1755525380450,28.61077898,181.07,180.9,3.07]
[1755525380741,3.05,181.04,180.9,3.07]
[1755525380947,3.05,181.02,180.9,3.07]
[1755525381136,3.05,181.02,180.8,342.64395945]
[1755525381337,3.05,181.02,180.82,3.07]
[1755525381542,3.05,181.0,180.82,3.07]
[1755525381742,9.01077898,181.03,180.82,3.07]
[1755525381743,3.86588762,180.99,180.82,3.07]
[1755525381943,3.05,181.02,180.82,3.07]
[1755525382138,3.05,181.0,180.82,3.07]
[1755525382341,3.05,181.0,180.85,3.07]
[1755525382545,3.05,181.0,180.86,3.07]
[1755525382743,3.05,181.0,180.9,3.07]
[1755525382938,3.05,181.0,180.92,3.07]
[1755525383342,3.05,181.0,180.92,5.524]
[1755525383549,3.05,181.0,180.9,3.07]
[1755525385151,3.05,181.02,180.9,3.07]
[1755525385445,3.05,181.02,180.93,9.01077898]
[1755525385648,3.05,181.08,180.98,3.07]
[1755525386038,153.6950541,181.21,180.88,9.01077898]
[1755525386243,3.05,181.13,181.03,3.07]
[1755525386841,9.01077898,181.15,180.96,9.01077898]
[1755525386842,3.85227608,181.12,180.96,9.01077898]
[1755525387041,9.01077898,181.15,180.83,11.0534]
[1755525387042,3.05,181.1,181.01,3.07]
[1755525388448,9.01077898,181.15,181.04,9.01077898]
[1755525388449,3.05,181.15,181.04,9.01077898]
[1755525388648,3.05,181.15,181.07,5.5195]
[1755525388843,3.05,181.15,180.89,11.05]
[1755525388844,3.05,181.15,181.08,3.07]
[1755525390051,0.03786358,181.13,181.11,3.07]
[1755525390247,0.03786358,181.13,181.12,3.07]
[1755525390553,3.05,181.21,181.12,3.07]
[1755525391048,3.05,181.19,181.09,3.07]
[1755525391255,3.05,181.17,181.09,3.07]
[1755525391951,3.05,181.17,181.11,3.1071753]
[1755525392347,3.05,181.24,181.11,3.07]
[1755525392553,3.05,181.22,181.11,3.07]
[1755525392747,3.05,181.22,181.09,9.01077898]
[1755525392748,3.05,181.22,181.15,5.517]
[1755525392945,3.05,181.22,181.13,9.01077898]
[1755525393350,3.05,181.22,181.17,9.01077898]
[1755525393552,3.05,181.22,181.16,0.0375501]
[1755525396354,25.56077898,181.28,181.16,0.0375501]
[1755525396659,10.98968876,181.27,181.16,0.0375501]
[1755525396858,9.01077898,181.24,181.03,9.01077898]
[1755525397157,10.99035641,181.23,181.2,0.00255578]
[1755525397359,8.23731598,181.22,181.2,0.00255578]
[1755525397558,3.87162629,181.21,181.07,9.01077898]
[1755525397862,9.01077898,181.24,181.07,9.01077898]
[1755525398062,3.87514997,181.23,181.09,5.5187]
[1755525398263,3.87514997,181.22,181.09,5.5187]
[1755525398456,9.01077898,181.24,181.09,5.5187]
[1755525398653,3.87846993,181.23,181.09,5.5187]
[1755525398960,3.87846993,181.22,180.95,11.0458]
[1755525399160,3.87846993,181.21,181.05,9.01077898]
[1755525399359,3.87846993,181.2,181.05,9.01077898]
[1755525399556,9.01077898,181.24,181.05,9.01077898]
[1755525399757,8.2551348,181.23,181.06,9.01077898]
[1755525399950,0.03832047,181.14,181.11,0.03521102]
[1755525400362,9.01077898,181.28,181.06,9.01077898]
[1755525400569,9.01077898,181.28,181.02,9.01077898]
[1755525400570,11.02251946,181.27,181.1,9.01077898]
[1755525400763,9.01077898,181.28,181.1,9.01077898]
[1755525400764,8.26189478,181.26,181.1,9.01077898]
[1755525400951,5.98509507,181.3,181.02,9.01077898]
[1755525400952,3.88398646,181.25,181.14,9.01077898]
[1755525401157,0.03736474,181.2,181.17,0.0410362]
[1755525401356,0.03736474,181.2,181.14,9.01077898]
[1755525401555,16.55,181.31,181.14,9.01077898]
[1755525401758,11.02349216,181.3,181.14,9.01077898]
[1755525401960,11.02349216,181.29,181.14,9.01077898]
[1755525402261,8.26374808,181.28,181.16,5.5167]
[1755525402468,3.88402899,181.27,181.01,11.0428]
[1755525402665,3.88402899,181.26,181.08,15.2862742]
[1755525402867,3.88402899,181.25,181.14,5.5171]
[1755525403070,22.53509507,181.31,181.08,15.2862742]
[1755525403368,11.02180985,181.3,181.16,5.5166]
[1755525403668,8.2617405,181.29,181.16,5.5166]
[1755525403869,3.88296994,181.28,181.16,5.5166]
[1755525404061,3.88296994,181.27,181.13,15.2862742]
[1755525404259,16.55,181.32,181.13,15.2862742]
[1755525404462,11.02132552,181.31,181.18,5.5161]
[1755525404661,16.55,181.32,181.13,15.2862742]
[1755525404662,8.26137495,181.3,181.13,15.2862742]
[1755525404861,3.88298349,181.29,181.13,15.2862742]
[1755525405063,16.55,181.33,181.18,5.516]
[1755525405064,3.88298349,181.28,181.18,5.516]
[1755525405261,16.55,181.33,181.18,5.516]
[1755525405461,16.55,181.33,181.13,15.2862742]
[1755525405462,11.0198972,181.32,181.13,15.2862742]
[1755525405667,27.57068236,181.31,181.05,26.3264742]
[1755525405863,16.55,181.29,181.05,15.2862742]
[1755525406162,65.02068236,181.28,181.05,15.2862742]
[1755525406368,3.88277134,181.27,181.1,15.2862742]
[1755525406565,3.88277134,181.27,181.11,5.5181]
[1755525406773,4.37802193,181.26,181.1,15.2862742]
[1755525406971,8.2607548,181.25,181.1,15.2862742]
[1755525407161,3.88277134,181.24,181.1,15.2862742]
[1755525407364,3.88277134,181.23,181.1,15.2862742]
[1755525407565,54.0,181.28,181.13,5.5177]
[1755525407759,3.88239536,181.27,181.1,15.2862742]
[1755525407964,8.2603787,181.26,180.95,71.13094825]
[1755525408164,3.88239536,181.25,181.1,5.5184]
[1755525408367,27.56861923,181.24,181.06,15.2862742]
[1755525408569,8.25954633,181.23,181.06,15.2862742]
[1755525408765,20.43239536,181.22,181.01,15.2862742]
[1755525409075,20.43239536,181.21,181.01,15.2862742]
[1755525409269,3.88239536,181.2,181.01,15.2862742]
[1755525409467,20.43239536,181.2,181.01,15.2862742]
[1755525409667,3.88239536,181.19,181.01,15.2862742]
[1755525409867,3.88239536,181.19,181.07,5.5193]
[1755525410065,16.55,181.22,181.07,5.5193]
[1755525410264,3.88419837,181.21,181.07,5.5193]
[1755525410459,3.88419837,181.2,180.93,11.0473]
[1755525410671,3.88419837,181.19,181.0,15.2862742]
[1755525410874,5.98509507,181.25,181.0,15.2862742]
[1755525411065,16.55,181.23,181.06,5.5196]
[1755525411261,27.57509818,181.22,181.06,5.5196]
[1755525411465,3.88421533,181.21,181.0,15.2862742]
[1755525411665,3.88421533,181.2,181.0,15.2862742]
[1755525411866,54.0,181.26,180.98,11.0445]
[1755525412067,16.55,181.24,181.06,5.5196]
[1755525412268,27.57572746,181.23,181.06,5.5196]
[1755525412467,8.26504494,181.22,181.01,15.2862742]
[1755525412772,3.88440027,181.21,181.07,5.5193]
[1755525412975,3.88440027,181.2,181.01,15.2862742]
[1755525413173,3.88440027,181.19,181.01,15.2862742]
[1755525413473,16.55,181.25,181.01,15.2862742]
[1755525413775,16.55,181.23,181.01,15.2862742]
[1755525413975,8.26371505,181.22,181.01,15.2862742]
[1755525414171,3.88376542,181.21,181.07,5.5193]
[1755525414372,3.88376542,181.2,181.07,5.5193]
[1755525414570,16.55,181.25,181.07,5.5193]
[1755525414872,16.55,181.23,181.07,5.5193]
[1755525415073,8.26396251,181.22,181.08,5.5192]
[1755525415271,3.88389309,181.21,181.01,15.2862742]
[1755525415471,16.55,181.25,181.04,15.2862742]
[1755525415670,16.55,181.23,181.08,5.519]
[1755525415871,3.8839112,181.22,181.04,15.2862742]
[1755525416071,3.8839112,181.21,181.04,15.2862742]
[1755525416272,16.55,181.23,181.1,5.5186]
[1755525416576,3.88404569,181.22,181.04,15.2862742]
[1755525416765,3.88404569,181.21,181.04,15.2862742]
[1755525416966,16.55,181.24,181.04,15.2862742]
[1755525417169,3.88419413,181.23,181.04,15.2862742]
[1755525417365,3.88419413,181.22,181.1,5.5184]
[1755525417572,16.55,181.24,181.1,5.5184]
[1755525417771,3.88421645,181.23,181.1,5.5184]
[1755525417972,3.88421645,181.22,181.1,5.5184]
[1755525418166,16.55,181.25,181.09,5.5188]
[1755525418376,20.43418753,181.24,181.09,5.5188]
[1755525418577,3.88418753,181.23,181.09,5.5188]
[1755525418782,3.88418753,181.22,181.04,15.2862742]
[1755525418973,16.55,181.24,181.04,15.2862742]
[1755525419174,3.88414428,181.23,181.04,15.2862742]
[1755525419378,3.88414428,181.22,181.1,5.5186]
[1755525419571,54.0,181.21,181.1,5.5186]
[1755525419877,54.0,181.21,181.09,5.5188]
[1755525420073,54.0,181.21,181.04,15.2862742]
[1755525420270,54.0,181.24,181.09,15.2862742]
[1755525420469,54.0,181.24,181.15,5.5169]
[1755525420674,54.0,181.28,181.09,15.2862742]
[1755525420869,74.43452814,181.27,181.09,15.2862742]
[1755525421082,16.55,181.25,181.09,15.2862742]
[1755525421382,70.55,181.27,181.09,15.2862742]
[1755525421783,54.0,181.27,181.14,15.2862742]
[1755525421979,54.0,181.35,181.14,15.2862742]
[1755525422178,62.25973268,181.34,181.14,15.2862742]
[1755525422378,62.25973268,181.34,181.02,25.68094825]
[1755525422379,3.88139686,181.33,181.17,9.03505268]
[1755525422683,0.0358297,181.26,181.23,0.04065677]
[1755525423081,0.0358297,181.26,181.06,25.68094825]
[1755525423082,9.03505268,181.36,181.18,9.03505268]
[1755525423287,8.25567497,181.35,181.03,16.5622]
[1755525423578,16.55,181.33,181.19,5.5158]
[1755525423886,16.55,181.31,181.2,5.5153]
[1755525424282,16.55,181.31,181.16,9.03505268]
[1755525424480,16.55,181.31,181.19,5.5157]
[1755525424685,16.55,181.35,181.16,9.03505268]
[1755525424984,16.55,181.33,181.22,5.515]
[1755525425281,3.8820106,181.32,181.2,9.03505268]
[1755525425483,16.55,181.33,181.2,9.03505268]
[1755525425780,20.43189379,181.32,181.16,9.03505268]
[1755525425985,20.43189379,181.31,181.16,9.03505268]
[1755525426180,16.55,181.29,180.99,9.13094825]
[1755525426388,3.88134969,181.28,181.11,9.03505268]
[1755525426788,3.88134969,181.28,181.14,5.5173]
[1755525427292,20.43134969,181.28,181.13,5.5177]
[1755525427474,20.43134969,181.27,181.11,9.03505268]
[1755525427680,3.88134969,181.26,181.11,9.03505268]
[1755525427876,57.88134969,181.26,181.11,9.03505268]
[1755525428082,3.8900278,181.25,181.11,9.03505268]
[1755525428278,54.0,181.26,181.11,9.03505268]
[1755525428582,3.89494944,181.25,181.11,9.03505268]
[1755525428782,54.0,181.26,181.11,9.03505268]
[1755525428984,3.89493994,181.25,181.11,9.03505268]
[1755525429178,54.0,181.26,181.14,5.5173]
[1755525429384,3.89898079,181.25,181.11,9.03505268]
[1755525429590,3.89898079,181.24,181.13,5.5176]
[1755525429791,54.0,181.26,181.13,5.5176]
[1755525430089,8.29665626,181.25,181.03,11.0416]
[1755525430284,3.89928992,181.24,181.12,5.5179]
[1755525430484,3.89928992,181.23,181.09,9.03505268]
[1755525430691,54.0,181.26,181.09,9.03505268]
[1755525430989,3.90405329,181.25,181.13,9.03505268]
[1755525431187,54.0,181.31,181.13,9.03505268]
[1755525431391,11.08793073,181.3,181.13,9.03505268]
[1755525431580,8.31149148,181.29,181.13,9.03505268]
[1755525431785,3.90664962,181.28,181.19,5.5157]
[1755525431982,3.90664962,181.27,181.17,9.03505268]
[1755525432184,5.98509507,181.34,181.17,9.03505268]
[1755525432384,11.0981067,181.33,181.17,9.03505268]
[1755525432591,11.0981067,181.32,181.17,9.03505268]
[1755525432783,8.31939517,181.31,181.22,5.5148]
[1755525432984,3.91110812,181.3,181.22,5.5148]
[1755525433183,3.91110812,181.29,181.17,9.03505268]
[1755525433387,3.91110812,181.28,181.17,9.03505268]
[1755525433685,3.91110812,181.27,181.18,5.5161]
[1755525433990,3.91110812,181.26,181.17,9.03505268]
[1755525434194,3.91110812,181.25,181.15,5.5169]
[1755525434389,3.91110812,181.24,181.12,9.03505268]
[1755525434581,5.98509507,181.3,181.12,9.03505268]
[1755525434888,11.10732866,181.29,181.12,9.03505268]
[1755525435080,11.10732866,181.28,181.12,9.03505268]
[1755525435285,63.03505268,181.34,181.2,5.5154]
[1755525435286,3.91249023,181.27,181.2,5.5154]
[1755525435485,3.91249023,181.26,181.16,9.03505268]
[1755525435689,16.55,181.31,181.16,9.03505268]
[1755525435895,11.11000831,181.3,181.16,9.03505268]
[1755525436085,11.11000831,181.29,181.16,9.03505268]
[1755525436289,8.32794303,181.28,181.16,9.03505268]
[1755525436493,3.91317795,181.27,181.19,5.5158]
[1755525436694,3.91317795,181.26,181.19,5.5158]
[1755525436894,3.91317795,181.25,181.19,5.5158]
[1755525437096,5.98509507,181.32,181.16,9.03505268]
[1755525437293,11.11600186,181.31,181.16,9.03505268]
[1755525437490,8.33237066,181.3,181.22,5.5147]
[1755525437691,3.91510274,181.29,181.22,5.5147]
[1755525437890,3.91510274,181.28,181.22,5.5147]
[1755525438097,3.91510274,181.27,181.23,5.5146]
[1755525438402,59.98509507,181.34,181.23,5.5146]
[1755525438403,76.53509507,181.34,181.23,5.5146]
[1755525438593,65.12022885,181.33,181.16,9.03505268]
[1755525438797,11.12022885,181.32,181.16,9.03505268]
[1755525439106,3.91696735,181.31,181.2,9.03505268]
[1755525439306,3.91696735,181.3,181.25,5.5139]
[1755525439501,5.98509507,181.37,181.24,9.03505268]
[1755525439702,11.12020358,181.36,181.24,9.03505268]
[1755525439899,11.12020358,181.35,181.26,5.5137]
[1755525440094,8.33526657,181.34,181.24,9.03505268]
[1755525440292,3.91625912,181.33,181.24,9.03505268]
[1755525440497,5.98509507,181.39,181.24,9.03505268]
[1755525440805,11.11396049,181.38,181.24,9.03505268]
[1755525441102,11.11396049,181.37,181.24,9.03505268]
[1755525441302,11.11396049,181.36,181.24,14.54935268]
[1755525441502,8.33089192,181.35,181.24,14.54935268]
[1755525441702,8.32815527,181.34,181.2,9.03505268]
[1755525441902,8.32796403,181.33,181.2,9.03505268]
[1755525442098,3.91470493,181.32,181.2,9.03505268]
[1755525442298,3.91470493,181.31,181.2,9.03505268]
[1755525442504,5.98509507,181.37,181.2,9.03505268]
[1755525442704,11.10435618,181.36,181.2,9.03505268]
[1755525443007,11.10435618,181.35,181.22,5.5147]
[1755525443202,8.32367538,181.34,181.2,9.03505268]
[1755525443396,8.32298011,181.33,181.2,9.03505268]
[1755525443701,3.91139565,181.32,181.21,5.5151]
[1755525444006,3.91139565,181.31,181.19,9.03505268]
[1755525444208,5.98509507,181.4,181.23,9.03505268]
[1755525444399,11.10463076,181.39,181.23,9.03505268]
[1755525444702,3.91169433,181.38,181.17,11.0325]
[1755525444901,3.91169433,181.37,181.26,9.03505268]
[1755525445101,54.0,181.43,181.3,5.5124]
[1755525445298,11.09682567,181.42,181.26,9.03505268]
[1755525445501,0.95990732,181.44,181.26,9.03505268]
[1755525445502,57.90870306,181.41,181.26,9.03505268]
[1755525445703,3.90870306,181.4,181.26,9.03505268]
[1755525445898,3.90870306,181.39,181.32,0.03739249]
[1755525446102,3.90655853,181.38,181.32,0.03739249]
[1755525446305,3.90655853,181.37,181.32,0.03739249]
[1755525446606,54.0,181.41,181.32,0.03739249]
[1755525446806,3.90450022,181.4,181.32,0.03739249]
[1755525446996,3.90450022,181.39,181.32,0.03739249]
[1755525447198,54.0,181.41,181.32,0.03739249]
[1755525447403,3.90435848,181.4,181.32,0.03739249]
[1755525447706,3.90435848,181.39,181.32,0.03739249]
[1755525447909,5.98509507,181.49,181.32,0.03739249]
[1755525448105,8.3076626,181.48,181.35,5.5108]
[1755525448311,3.90387523,181.47,181.35,5.5108]
[1755525448504,3.90387523,181.46,181.35,5.5108]
[1755525448706,0.95970878,181.5,181.35,5.5108]
[1755525448906,8.3008174,181.49,181.35,5.5108]
[1755525449102,3.90069542,181.48,181.39,0.0423736]
[1755525449303,0.95970878,181.5,181.39,0.0423736]
[1755525449304,3.90069542,181.47,181.39,0.0423736]
[1755525449506,25.58505268,181.52,181.34,9.03505268]
[1755525449705,27.61453841,181.51,181.34,9.03505268]
[1755525449909,27.61453841,181.5,181.34,9.03505268]
[1755525450205,25.58505268,181.48,181.29,9.03505268]
[1755525450410,27.61453841,181.47,181.29,9.03505268]
[1755525450709,3.89699323,181.46,181.29,9.03505268]
[1755525450908,3.89699323,181.45,181.29,9.03505268]
[1755525451106,3.89699323,181.44,181.29,9.03505268]
[1755525451306,16.55,181.49,181.31,5.5122]
[1755525451507,11.05006212,181.48,181.31,5.5122]
[1755525451708,8.28172471,181.47,181.31,5.5122]
[1755525451909,3.88957701,181.46,181.31,5.5122]
[1755525452211,3.88957701,181.45,181.29,9.03505268]
[1755525452512,3.88957701,181.44,181.29,9.03505268]
[1755525452712,3.88957701,181.43,181.29,9.03505268]
[1755525453010,3.88957701,181.42,181.29,9.03505268]
[1755525453311,25.58505268,181.46,181.29,9.03505268]
[1755525453613,8.2758097,181.45,181.29,14.54775268]
[1755525453804,25.58505268,181.46,181.29,9.03505268]
[1755525453805,3.88592821,181.44,181.29,9.03505268]
[1755525454001,3.88592821,181.43,181.29,9.03505268]
[1755525454310,3.88592821,181.42,181.29,9.03505268]
[1755525454511,25.58505268,181.46,181.29,9.03505268]
[1755525454705,3.88614311,181.45,181.33,5.5116]
[1755525454908,3.88614311,181.44,181.33,5.5116]
[1755525455206,54.0,181.48,181.33,9.03505268]
[1755525455409,3.887819,181.47,181.33,9.03505268]
[1755525455616,9.03505268,181.52,181.33,9.03505268]
[1755525455816,11.04514651,181.51,181.33,9.03505268]
[1755525456114,3.886721,181.5,181.33,9.03505268]
[1755525456414,3.886721,181.49,181.33,9.03505268]
[1755525456609,3.886721,181.48,181.37,5.5102]
[1755525456812,25.58505268,181.52,181.33,9.03505268]
[1755525457014,11.04494982,181.51,181.33,9.03505268]